fUST/lending_fUST_20250719
["ID","MTS","AMOUNT","RATE_DAILY","PERIOD"]
[373100148,1752859853945,-1015.39,0.00021112,2]
[373100150,1752859853955,-487.77,0.00021113,2]
[373100152,1752859853964,-493.81,0.00021113,2]
[373100154,1752859853974,-524.61,0.00021113,2]
[373100156,1752859853983,-704.19,0.00021113,2]
[373100158,1752859853993,-460.0,0.00021113,2]
[373100160,1752859854002,-764.37,0.00021113,2]
[373100162,1752859854012,-183.61,0.00021115,2]
[373100164,1752859854024,-460.0,0.00021115,2]
[373100166,1752859854033,-1720.96,0.00021115,2]
[373100168,1752859854043,-1395.97,0.00021115,2]
[373100170,1752859854052,-599.52,0.00021115,2]
[373100172,1752859854062,-4107.13,0.00021115,2]
[373100174,1752859854071,-460.0,0.00021115,2]
[373100176,1752859854081,-1227.63,0.00021115,2]
[373100178,1752859854090,-2655.99,0.00021116,2]
[373100180,1752859854100,-775.59,0.00021116,2]
[373100182,1752859854110,-500.0,0.00021118,2]
[373100184,1752859854120,-500.0,0.00021118,2]
[373100186,1752859854129,-263.04368331,0.00021118,2]
[373100188,1752859854138,-979.0,0.00021126,2]
[373100190,1752859854147,-979.0,0.00021144,2]
[373100192,1752859854157,-979.0,0.00021194,2]
[373100194,1752859854167,-160.0,0.00021197,3]
[373100196,1752859854176,-1626.16,0.00021287,2]
[373100198,1752859854186,-519.29,0.00021287,2]
[373100200,1752859854196,-2793.69,0.00021287,2]
[373100202,1752859854205,-1377.11,0.00021287,2]
[373100204,1752859854214,-925.96,0.00021287,2]
[373100206,1752859854224,-460.0,0.00021287,2]
[373100208,1752859854234,-1676.85,0.00021287,2]
[373100210,1752859854243,-7589.5188529,0.00021306,2]
[373100212,1752859854253,-1836.73839674,0.00021314,5]
[373100214,1752859854263,-231.28369723,0.00021331,2]
[373100216,1752859854275,-760.0,0.00021382,2]
[373100218,1752859854285,-675.1,0.00021385,2]
[373100220,1752859854295,-334.49337298,0.00021385,2]
[373100222,1752859854305,-463.46,0.00021386,2]
[373100224,1752859854315,-667.05,0.00021386,2]
[373100226,1752859854325,-1015.39,0.00021386,2]
[373100228,1752859854336,-487.77,0.00021387,2]
[373100230,1752859854344,-493.81,0.00021387,2]
[373100232,1752859854354,-524.61,0.00021387,2]
[373100234,1752859854363,-704.19,0.00021387,2]
[373100236,1752859854372,-460.0,0.00021387,2]
[373100238,1752859854381,-764.37,0.00021387,2]
[373100240,1752859854392,-312.23466378,0.00021389,2]
[373100242,1752859854401,-1720.96,0.00021389,2]
[373100244,1752859854411,-1395.97,0.00021389,2]
[373100246,1752859854421,-599.52,0.00021389,2]
[373100247,1752859854430,-4107.13,0.00021389,2]
[373100249,1752859854439,-460.0,0.00021389,2]
[373100251,1752859854449,-1227.63,0.00021389,2]
[373100253,1752859854458,-2655.99,0.0002139,2]
[373100255,1752859854468,-775.59,0.0002139,2]
[373100257,1752859854477,-151.0,0.0002139,2]
[373100259,1752859854487,-500.0,0.00021392,2]
[373100261,1752859854497,-500.0,0.00021392,2]
[373100263,1752859854506,-356.9960021,0.00021397,2]
[373100265,1752859854516,-153.0,0.00021397,2]
[373100276,1752859854600,-153.0,0.00021397,2]
[373100278,1752859854619,-568.55500611,0.00021442,5]
[373100280,1752859854628,-153.0,0.00021506,2]
[373100282,1752859854638,-153.0,0.00021506,2]
[373100284,1752859854647,-153.0,0.00021506,2]
[373100286,1752859854657,-577.0505339,0.00021506,2]
[373100288,1752859854667,-979.0,0.00021528,2]
[373100290,1752859854677,-151.0,0.00021528,2]
[373100292,1752859854686,-151.0,0.00021528,2]
[373100294,1752859854696,-151.0,0.00021528,2]
[373100296,1752859854706,-151.0,0.00021528,2]
[373100298,1752859854715,-187.505626,0.00021528,2]
[373100300,1752859854724,-979.0,0.00021539,2]
[373100302,1752859854734,-979.0,0.00021557,2]
[373100304,1752859854743,-1626.16,0.00021561,2]
[373100306,1752859854752,-519.29,0.00021561,2]
[373100307,1752859854762,-2793.69,0.00021561,2]
[373100309,1752859854775,-1377.11,0.00021561,2]
[373100311,1752859854785,-925.96,0.00021561,2]
[373100313,1752859854795,-460.0,0.00021561,2]
[373100315,1752859854804,-1676.85,0.00021561,2]
[373100317,1752859854814,-979.0,0.00021563,2]
[373100320,1752859854824,-1836.73839674,0.0002159,5]
[373100321,1752859854833,-979.0,0.00021594,2]
[373100323,1752859854844,-7589.5188529,0.00021642,2]
[373100325,1752859854854,-151.0,0.00021659,2]
[373100327,1752859854863,-238.215153,0.00021659,2]
[373100329,1752859854873,-151.0,0.00021659,2]
[373100331,1752859854882,-151.0,0.00021659,2]
[373100333,1752859854892,-675.1,0.00021659,2]
[373100335,1752859854902,-151.0,0.00021659,2]
[373100337,1752859854912,-463.46,0.0002166,2]
[373100339,1752859854922,-667.05,0.0002166,2]
[373100341,1752859854932,-1015.39,0.0002166,2]
[373100343,1752859854942,-487.77,0.00021661,2]
[373100345,1752859854951,-493.81,0.00021661,2]
[373100347,1752859854962,-524.61,0.00021661,2]
[373100349,1752859854972,-704.19,0.00021661,2]
[373100351,1752859854982,-460.0,0.00021661,2]
[373100353,1752859854992,-764.37,0.00021661,2]
[373100355,1752859855001,-1720.96,0.00021663,2]
[373100357,1752859855011,-1395.97,0.00021663,2]
[373100359,1752859855020,-599.52,0.00021663,2]
[373100361,1752859855032,-4107.13,0.00021663,2]
[373100363,1752859855041,-460.0,0.00021663,2]
[373100365,1752859855050,-1227.63,0.00021663,2]
[373100367,1752859855060,-2655.99,0.00021664,2]
[373100369,1752859855071,-775.59,0.00021664,2]
[373100371,1752859855080,-505.59339304,0.00021666,2]
[373100373,1752859855090,-500.0,0.00021666,2]
[373100375,1752859855100,-153.0,0.00021671,2]
[373100377,1752859855109,-500.0,0.00021712,2]
[373100379,1752859855119,-250.0,0.00021742,2]
[373100381,1752859855129,-151.0,0.0002178,2]
[373100383,1752859855138,-151.0,0.0002178,2]
[373100385,1752859855148,-1626.16,0.00021835,2]
[373100387,1752859855158,-519.29,0.00021835,2]
[373100389,1752859855167,-2793.69,0.00021835,2]
[373100391,1752859855177,-1377.11,0.00021835,2]
[373100393,1752859855186,-925.96,0.00021835,2]
[373100395,1752859855195,-270.56398302,0.00021835,2]
[373100397,1752859855205,-1676.85,0.00021835,2]
[373100399,1752859855214,-1836.73839674,0.00021866,6]
[373100401,1752859855223,-7589.5188529,0.00021873,2]
[373100403,1752859855232,-161.0,0.0002189,5]
[373100405,1752859855242,-642.0,0.000219,2]
[373100407,1752859855251,-160.0,0.00021901,4]
[373100409,1752859855261,-10547.29457622,0.00021916,2]
[373100411,1752859855270,-151.0,0.00021917,2]
[373100413,1752859855281,-151.0,0.00021917,2]
[373100415,1752859855291,-541.42,0.00021917,2]
[373100417,1752859855300,-541.42,0.00021917,2]
[373100419,1752859855310,-541.42,0.00021917,2]
[373100421,1752859855320,-541.42,0.00021917,2]
[373100423,1752859855329,-541.42,0.00021917,2]
[373100425,1752859855339,-541.42,0.00021917,2]
[373100427,1752859855348,-541.42,0.00021917,2]
[373100429,1752859855358,-541.42,0.00021917,2]
[373100431,1752859855367,-541.42,0.00021917,2]
[373100433,1752859855376,-541.42,0.00021917,2]
[373100435,1752859855386,-541.42,0.00021917,2]
[373100437,1752859855395,-541.42,0.00021917,2]
[373100439,1752859855405,-541.42,0.00021917,2]
[373100441,1752859855414,-541.42,0.00021917,2]
[373100443,1752859855424,-541.42,0.00021917,2]
[373100445,1752859855433,-541.42,0.00021917,2]
[373100447,1752859855442,-541.42,0.00021917,2]
[373100449,1752859855451,-541.42,0.00021917,2]
[373100451,1752859855461,-541.42,0.00021917,2]
[373100453,1752859855470,-541.42,0.00021917,2]
[373100455,1752859855479,-200.0,0.00021918,2]
[373100457,1752859855489,-150.0879647,0.00021918,2]
[373100459,1752859855499,-7589.5188529,0.0002192,2]
[373100461,1752859855508,-860.0,0.0002193,2]
[373100463,1752859855517,-675.1,0.00021933,2]
[373100465,1752859855527,-463.46,0.00021934,2]
[373100467,1752859855536,-151.0,0.00021934,7]
[373100469,1752859855545,-151.0,0.00021934,7]
[373100471,1752859855555,-441.037214,0.00021934,7]
[373100473,1752859855564,-441.037214,0.00021934,7]
[373100475,1752859855574,-667.05,0.00021934,2]
[373100477,1752859855583,-1015.39,0.00021934,2]
[373100479,1752859855593,-541.42,0.00021935,2]
[373100481,1752859855602,-487.77,0.00021935,2]
[373100483,1752859855611,-493.81,0.00021935,2]
[373100485,1752859855620,-524.61,0.00021935,2]
[373100487,1752859855630,-704.19,0.00021935,2]
[373100489,1752859855639,-460.0,0.00021935,2]
[373100491,1752859855649,-764.37,0.00021935,2]
[373100493,1752859855658,-151.0,0.00021937,7]
[373100495,1752859855668,-151.0,0.00021937,7]
[373100497,1752859855677,-151.0,0.00021937,7]
[373100499,1752859855686,-151.0,0.00021937,7]
[373100501,1752859855696,-1720.96,0.00021937,2]
[373100503,1752859855705,-1395.97,0.00021937,2]
[373100505,1752859855715,-599.52,0.00021937,2]
[373100507,1752859855724,-202.08389333,0.00021937,2]
[373100508,1752859855733,-4107.13,0.00021937,2]
[373100509,1752859855743,-1227.63,0.00021937,2]
[373100510,1752859855752,-2655.99,0.00021938,2]
[373100511,1752859855761,-775.59,0.00021938,2]
[373100512,1752859855774,-500.0,0.0002194,2]
[373100513,1752859855783,-288.20497452,0.0002197,2]
[373100514,1752859855792,-150.0,0.00021973,2]
[373100515,1752859855802,-500.0,0.00021973,2]
[373100517,1752859855812,-501.09296893,0.00021973,2]
[373100519,1752859855822,-501.26367768,0.00021973,2]
[373100521,1752859855831,-500.0,0.00021973,2]
[373100523,1752859855843,-500.0,0.00021973,2]
[373100525,1752859855852,-500.0,0.00021973,2]
[373100527,1752859855861,-644.0334221,0.00021973,2]
[373100529,1752859855870,-500.0,0.00021973,2]
[373100531,1752859855879,-500.85686421,0.00021973,2]
[373100533,1752859855889,-500.0,0.00021973,2]
[373100535,1752859855898,-501.33414174,0.00021973,2]
[373100537,1752859855908,-500.0,0.00021973,2]
[373100539,1752859855916,-501.54652161,0.00021973,2]
[373100541,1752859855926,-979.0,0.00021999,2]
[373100543,1752859855935,-2839.99,0.00022,7]
[373100545,1752859855944,-21478.24,0.00022,7]
[373100547,1752859855954,-6147.68,0.00022,7]
[373100549,1752859855963,-76202.87,0.00022,2]
[373100551,1752859855972,-151.0,0.00022,7]
[373100553,1752859855981,-151.0,0.00022,7]
[373100555,1752859855991,-151.0,0.00022,7]
[373100557,1752859855999,-151.0,0.00022,7]
[373100559,1752859856009,-151.0,0.00022,7]
[373100561,1752859856018,-151.0,0.00022,7]
[373100563,1752859856029,-291.594032,0.00022,7]
[373100565,1752859856038,-151.0,0.00022,7]
[373100567,1752859856047,-151.0,0.00022,7]
[373100569,1752859856056,-151.0,0.00022,7]
[373100571,1752859856066,-151.0,0.00022,7]
[373100573,1752859856076,-151.0,0.00022,7]
[373100575,1752859856086,-182.551168,0.00022,7]
[373100577,1752859856095,-182.551168,0.00022,7]
[373100579,1752859856105,-242.526265,0.00022,7]
[373100581,1752859856115,-261.556054,0.00022,7]
[373100583,1752859856124,-261.556054,0.00022,7]
[373100585,1752859856133,-500.0,0.00022,2]
[373100587,1752859856142,-150.0,0.00022,2]
[373100589,1752859856152,-75242.55986911,0.00022,2]
[373100591,1752859856162,-352.73078831,0.00022,2]
[373100593,1752859856171,-160.0,0.00022,7]
[373100595,1752859856180,-51521.04406367,0.00022,2]
[373100607,1752859856282,-4399.0543402,0.00022,2]
[373100609,1752859856294,-324.69799998,0.00022,2]
[373100624,1752859856423,-460.0,0.00016456,2]
[373100626,1752859856432,-460.0,0.0001673,2]
[373100628,1752859856442,-223.36787139,0.00022,2]
[373100630,1752859856451,-22001.85323399,0.00022,2]
[373100632,1752859856461,-399.6786899,0.00022,14]
[373100634,1752859856470,-168.6492421,0.00022,2]
[373100636,1752859856479,-214.4881157,0.00022,7]
[373100638,1752859856488,-151.0,0.00022,7]
[373100640,1752859856497,-12610.43989422,0.00022,7]
[373100642,1752859856506,-500.0,0.00022,2]
[373100643,1752859856517,-204.0,0.00022,2]
[373100645,1752859856528,-476.25663856,0.00022,7]
[373100647,1752859856537,-1172.143583,0.00022038,8]
[373100649,1752859856546,-1626.16,0.00022109,2]
[373100652,1752859856556,-519.29,0.00022109,2]
[373100654,1752859856565,-2793.69,0.00022109,2]
[373100656,1752859856575,-1377.11,0.00022109,2]
[373100658,1752859856584,-925.96,0.00022109,2]
[373100660,1752859856593,-1676.85,0.00022109,2]
[373100662,1752859856602,-1836.73839674,0.00022141,6]
[373100664,1752859856611,-204.0,0.00022192,7]
[373100666,1752859856620,-500.0,0.000222,2]
[373100668,1752859856629,-500.0,0.000222,2]
[373100669,1752859856638,-675.1,0.00022207,2]
[373100672,1752859856648,-463.46,0.00022208,2]
[373100673,1752859856657,-667.05,0.00022208,2]
[373100675,1752859856667,-1015.39,0.00022208,2]
[373100677,1752859856676,-541.42,0.00022209,2]
[373100680,1752859856686,-487.77,0.00022209,2]
[373100681,1752859856695,-493.81,0.00022209,2]
[373100684,1752859856705,-524.61,0.00022209,2]
[373100686,1752859856714,-704.19,0.00022209,2]
[373100688,1752859856723,-289.30783939,0.00022209,2]
[373100690,1752859856732,-764.37,0.00022209,2]
[373100692,1752859856742,-1720.96,0.00022211,2]
[373100694,1752859856751,-1395.97,0.00022211,2]
[373100696,1752859856761,-599.52,0.00022211,2]
[373100698,1752859856774,-4107.13,0.00022211,2]
[373100699,1752859856783,-1227.63,0.00022211,2]
[373100702,1752859856792,-151.0,0.00022212,7]
[373100704,1752859856801,-2655.99,0.00022212,2]
[373100705,1752859856813,-775.59,0.00022212,2]
[373100708,1752859856825,-245.00132,0.00022212,2]
[373100710,1752859856835,-500.0,0.00022214,2]
[373100712,1752859856846,-160.0,0.000223,7]
[373100714,1752859856857,-306.0,0.00022328,2]
[373100715,1752859856866,-4292.77323056,0.00022335,2]
[373100721,1752859856910,-460.0,0.00016456,2]
[373100723,1752859856919,-460.0,0.0001673,2]
[373100725,1752859856929,-468.47166745,0.00017004,2]
[373100727,1752859856939,-3296.74562244,0.00022335,2]
[373100730,1752859856949,-151.0,0.00022345,7]
[373100732,1752859856958,-1626.16,0.00022383,2]
[373100734,1752859856968,-519.29,0.00022383,2]
[373100736,1752859856977,-2793.69,0.00022383,2]
[373100738,1752859856987,-1377.11,0.00022383,2]
[373100740,1752859856996,-925.96,0.00022383,2]
[373100742,1752859857006,-1676.85,0.00022383,2]
[373100744,1752859857015,-151.0,0.0002239,7]
[373100746,1752859857026,-2669.07589009,0.0002239,2]
[373100748,1752859857036,-151.0,0.0002239,7]
[373100750,1752859857045,-151.0,0.0002239,7]
[373100752,1752859857055,-151.0,0.0002239,7]
[373100754,1752859857064,-151.0,0.0002239,7]
[373100756,1752859857074,-511.70238936,0.0002239,2]
[373100758,1752859857083,-500.0,0.000224,2]
[373100760,1752859857092,-160.0,0.000224,3]
[373100762,1752859857102,-214.4881157,0.000224,3]
[373100764,1752859857111,-12610.43989422,0.000224,3]
[373100766,1752859857121,-476.25663856,0.000224,3]
[373100768,1752859857130,-476.25663856,0.000224,7]
[373100770,1752859857139,-1836.73839674,0.00022417,7]
[373100772,1752859857148,-500.0,0.00022473,2]
[373100774,1752859857157,-500.0,0.00022473,2]
[373100776,1752859857166,-500.0,0.00022473,2]
[373100778,1752859857175,-150.0,0.00022473,2]
[373100779,1752859857184,-960.0,0.00022478,2]
[373100781,1752859857194,-675.1,0.00022481,2]
[373100784,1752859857203,-463.46,0.00022482,2]
[373100785,1752859857212,-667.05,0.00022482,2]
[373100787,1752859857221,-1015.39,0.00022482,2]
[373100789,1752859857230,-541.42,0.00022483,2]
[373100791,1752859857239,-487.77,0.00022483,2]
[373100793,1752859857248,-493.81,0.00022483,2]
[373100796,1752859857258,-524.61,0.00022483,2]
[373100798,1752859857267,-704.19,0.00022483,2]
[373100799,1752859857278,-764.37,0.00022483,2]
[373100801,1752859857288,-1720.96,0.00022485,2]
[373100803,1752859857297,-1395.97,0.00022485,2]
[373100805,1752859857306,-599.52,0.00022485,2]
[373100807,1752859857315,-4107.13,0.00022485,2]
[373100809,1752859857325,-1227.63,0.00022485,2]
[373100812,1752859857335,-2655.99,0.00022486,2]
[373100813,1752859857344,-775.59,0.00022486,2]
[373100816,1752859857354,-151.0,0.00022486,7]
[373100817,1752859857363,-232.843891,0.00022486,7]
[373100820,1752859857373,-441.037214,0.00022486,7]
[373100822,1752859857382,-441.037214,0.00022486,7]
[373100824,1752859857391,-500.0,0.00022488,2]
[373100826,1752859857401,-12298.86293646,0.0002249,7]
[373100831,1752859857443,-460.0,0.00016457,2]
[373100833,1752859857452,-185.29,0.00016629,2]
[373100840,1752859857502,-274.71,0.00016629,2]
[373100842,1752859857511,-460.0,0.00016903,2]
[373100844,1752859857520,-460.0,0.00017177,2]
[373100846,1752859857532,-290.95494,0.00019369,2]
[373100848,1752859857541,-647.0,0.00019615,2]
[373100850,1752859857550,-184.427967,0.00020019,2]
[373100852,1752859857559,-184.427967,0.0002139,2]
[373100854,1752859857569,-58434.95074096,0.0002249,7]
[373100888,1752859857892,-431665.6924286,0.0002249,7]
[373100890,1752859857902,-151.0,0.0002249,7]
[373100893,1752859857912,-274.763432,0.0002249,7]
[373100894,1752859857921,-151.0,0.0002249,7]
[373100896,1752859857930,-151.0,0.0002249,7]
[373100899,1752859857940,-151.487078,0.0002249,7]
[373100901,1752859857949,-151.0,0.0002249,7]
[373100903,1752859857958,-151.0,0.0002249,7]
[373100905,1752859857967,-151.0,0.0002249,7]
[373100907,1752859857977,-151.0,0.0002249,7]
[373100909,1752859857987,-151.0,0.0002249,7]
[373100911,1752859857996,-151.0,0.0002249,7]
[373100913,1752859858005,-151.0,0.0002249,7]
[373100915,1752859858015,-151.0,0.0002249,7]
[373100917,1752859858027,-151.0,0.0002249,7]
[373100919,1752859858036,-151.0,0.0002249,7]
[373100921,1752859858046,-151.0,0.0002249,7]
[373100923,1752859858055,-151.0,0.0002249,7]
[373100925,1752859858064,-151.0,0.0002249,7]
[373100926,1752859858148,-151.0,0.0002249,7]
[373100927,1752859858158,-151.0,0.0002249,7]
[373100928,1752859858167,-151.0,0.0002249,7]
[373100929,1752859858177,-151.0,0.0002249,7]
[373100930,1752859858187,-151.0,0.0002249,7]
[373100931,1752859858196,-182.551168,0.0002249,7]
[373100932,1752859858205,-182.551168,0.0002249,7]
[373100933,1752859858215,-151.0,0.0002249,7]
[373100934,1752859858224,-242.526265,0.0002249,7]
[373100935,1752859858233,-261.556054,0.0002249,7]
[373100936,1752859858242,-261.556054,0.0002249,7]
[373100937,1752859858252,-151.0,0.0002249,7]
[373100938,1752859858262,-151.0,0.0002249,7]
[373100939,1752859858272,-151.0,0.0002249,7]
[373100940,1752859858284,-441.037214,0.0002249,7]
[373100941,1752859858294,-441.037214,0.0002249,7]
[373100942,1752859858303,-163.033802,0.0002249,7]
[373100943,1752859858313,-151.0,0.0002249,7]
[373100944,1752859858323,-151.0,0.0002249,7]
[373100945,1752859858333,-151.0,0.0002249,7]
[373100946,1752859858343,-94968.25249045,0.0002249,7]
[373100947,1752859858353,-151.0,0.0002249,7]
[373100948,1752859858362,-151.0,0.0002249,7]
[373100949,1752859858372,-1006.73801756,0.000225,2]
[373100950,1752859858381,-476.25663856,0.000225,7]
[373100951,1752859858391,-1752.0,0.000225,3]
[373100952,1752859858400,-1752.0,0.000225,3]
[373100953,1752859858410,-1752.0,0.000225,3]
[373100954,1752859858419,-1752.0,0.000225,3]
[373100955,1752859858429,-1752.0,0.000225,3]
[373100956,1752859858438,-1752.0,0.000225,3]
[373100957,1752859858447,-154.0,0.000225,3]
[373100958,1752859858457,-154.0,0.000225,3]
[373100959,1752859858467,-324.0,0.000225,3]
[373100960,1752859858476,-324.0,0.000225,3]
[373100961,1752859858486,-324.0,0.000225,3]
[373100962,1752859858495,-324.0,0.000225,3]
[373100963,1752859858504,-324.0,0.000225,3]
[373100964,1752859858514,-324.0,0.000225,3]
[373100965,1752859858523,-324.0,0.000225,3]
[373100966,1752859858535,-324.0,0.000225,3]
[373100967,1752859858544,-324.0,0.000225,3]
[373100968,1752859858554,-324.0,0.000225,3]
[373100969,1752859858563,-324.0,0.000225,3]
[373100970,1752859858573,-300.0,0.00022521,2]
[373100971,1752859858582,-500.0,0.00022521,2]
[373100972,1752859858592,-503.42127867,0.00022521,2]
[373100973,1752859858601,-160.0,0.000226,3]
[373100974,1752859858609,-291.712168,0.00022603,2]
[373100975,1752859858618,-200.0,0.00022603,2]
[373100976,1752859858628,-160.0,0.00022605,5]
[373100977,1752859858636,-647.0,0.00022615,2]
[373100978,1752859858646,-1626.16,0.00022657,2]
[373100979,1752859858655,-519.29,0.00022657,2]
[373100980,1752859858665,-2793.69,0.00022657,2]
[373100981,1752859858675,-1377.11,0.00022657,2]
[373100982,1752859858685,-925.96,0.00022657,2]
[373100983,1752859858694,-1676.85,0.00022657,2]
[373100984,1752859858703,-3221.13901528,0.00022685,7]
[373100985,1752859858713,-1836.73839674,0.00022693,7]
[373100986,1752859858722,-239.84119403,0.000227,2]
[373100987,1752859858731,-205.0,0.000227,2]
[373100988,1752859858740,-151.856954,0.000227,7]
[373100989,1752859858750,-2669.07589003,0.00022717,2]
[373100990,1752859858759,-151.0,0.00022744,7]
[373100991,1752859858772,-151.0,0.00022744,7]
[373100992,1752859858783,-675.1,0.00022755,2]
[373100993,1752859858793,-463.46,0.00022756,2]
[373100994,1752859858803,-541.64923849,0.00022756,2]
[373100995,1752859858814,-487.95650395,0.00022756,2]
[373100996,1752859858823,-493.8466741,0.00022756,2]
[373100997,1752859858832,-524.65594735,0.00022756,2]
[373100998,1752859858843,-667.05,0.00022756,2]
[373100999,1752859858852,-704.26642957,0.00022756,2]
[373101000,1752859858862,-1015.41768674,0.00022756,2]
[373101001,1752859858871,-764.46440285,0.00022756,2]
[373101002,1752859858881,-2656.13183022,0.00022759,2]
[373101003,1752859858890,-775.75505578,0.00022759,2]
[373101004,1752859858900,-1720.96,0.00022759,2]
[373101005,1752859858909,-1396.04214018,0.00022759,2]
[373101006,1752859858918,-599.52,0.00022759,2]
[373101007,1752859858928,-4107.28849465,0.00022759,2]
[373101008,1752859858937,-1227.63,0.00022759,2]
[373101009,1752859858945,-500.0,0.00022762,2]
[373101010,1752859858955,-1039.57238948,0.0002277,2]
[373101011,1752859858964,-500.0,0.00022808,2]
[373101012,1752859858973,-151.0,0.00022833,7]
[373101013,1752859858982,-151.0,0.00022833,7]
[373101015,1752859858991,-160.0,0.00022833,3]
[373101017,1752859859000,-160.0,0.00022833,3]
[373101019,1752859859010,-160.93346759,0.00022833,3]
[373101021,1752859859019,-1752.0,0.00022833,3]
[373101023,1752859859030,-1752.0,0.00022833,3]
[373101025,1752859859039,-1752.0,0.00022833,3]
[373101027,1752859859048,-1752.0,0.00022833,3]
[373101029,1752859859058,-1752.0,0.00022833,3]
[373101031,1752859859067,-1752.0,0.00022833,3]
[373101033,1752859859077,-1752.0,0.00022833,3]
[373101035,1752859859086,-1752.0,0.00022833,3]
[373101037,1752859859095,-1752.0,0.00022833,3]
[373101039,1752859859104,-1752.0,0.00022833,3]
[373101041,1752859859114,-255.74324676,0.00022833,3]
[373101043,1752859859123,-1752.0,0.00022833,3]
[373101045,1752859859133,-1752.0,0.00022833,3]
[373101047,1752859859142,-1752.0,0.00022833,3]
[373101049,1752859859151,-1752.0,0.00022833,3]
[373101051,1752859859160,-1752.0,0.00022833,3]
[373101053,1752859859170,-1752.0,0.00022833,3]
[373101054,1752859859179,-324.0,0.00022833,3]
[373101055,1752859859189,-324.0,0.00022833,3]
[373101057,1752859859199,-324.0,0.00022833,3]
[373101058,1752859859208,-324.0,0.00022833,3]
[373101061,1752859859218,-324.0,0.00022833,3]
[373101062,1752859859228,-324.0,0.00022833,3]
[373101064,1752859859237,-324.0,0.00022833,3]
[373101066,1752859859247,-324.0,0.00022833,3]
[373101068,1752859859256,-324.0,0.00022833,3]
[373101070,1752859859266,-324.0,0.00022833,3]
[373101072,1752859859277,-324.0,0.00022833,3]
[373101074,1752859859287,-324.0,0.00022833,3]
[373101076,1752859859296,-324.0,0.00022833,3]
[373101078,1752859859308,-324.0,0.00022833,3]
[373101080,1752859859317,-324.0,0.00022833,3]
[373101082,1752859859327,-324.0,0.00022833,3]
[373101084,1752859859337,-324.0,0.00022833,3]
[373101086,1752859859346,-324.0,0.00022833,3]
[373101088,1752859859356,-324.0,0.00022833,3]
[373101089,1752859859365,-324.0,0.00022833,3]
[373101090,1752859859374,-324.0,0.00022833,3]
[373101091,1752859859383,-324.0,0.00022833,3]
[373101092,1752859859392,-324.0,0.00022833,3]
[373101093,1752859859402,-324.0,0.00022833,3]
[373101094,1752859859411,-324.0,0.00022833,3]
[373101095,1752859859420,-324.0,0.00022833,3]
[373101096,1752859859429,-324.0,0.00022833,3]
[373101097,1752859859438,-189.18848528,0.00022833,3]
[373101098,1752859859447,-324.0,0.00022833,3]
[373101099,1752859859456,-324.0,0.00022833,3]
[373101100,1752859859466,-324.0,0.00022833,3]
[373101102,1752859859476,-324.0,0.00022833,3]
[373101104,1752859859486,-324.0,0.00022833,3]
[373101106,1752859859495,-324.0,0.00022833,3]
[373101108,1752859859504,-324.0,0.00022833,3]
[373101110,1752859859513,-324.0,0.00022833,3]